fUST/lending_fUST_20250627
["ID","MTS","AMOUNT","RATE_DAILY","PERIOD"]
[368092687,1751022642894,-500.0,0.00019987,2]
[368092688,1751022642903,-100000.0,0.0001999,2]
[368092689,1751022642912,-477.72,0.0002,2]
[368092690,1751022642922,-470.06791648,0.0002,2]
[368092691,1751022642933,-851.67857876,0.0002,2]
[368092692,1751022642943,-460.0,0.0002,2]
[368092693,1751022642952,-460.0,0.0002,2]
[368092694,1751022642962,-460.0,0.0002,2]
[368092695,1751022642972,-791.95,0.0002,2]
[368092696,1751022642982,-460.0,0.0002,2]
[368092697,1751022642992,-460.0,0.0002,2]
[368092698,1751022643003,-460.0,0.0002,2]
[368092699,1751022643015,-460.0,0.0002,2]
[368092700,1751022643025,-528.92,0.0002,2]
[368092701,1751022643034,-713.1,0.0002,2]
[368092702,1751022643045,-460.0,0.0002,2]
[368092703,1751022643055,-460.0,0.0002,2]
[368092704,1751022643065,-5760.83,0.0002,2]
[368092705,1751022643075,-460.0,0.0002,2]
[368092706,1751022643084,-460.0,0.0002,2]
[368092707,1751022643093,-460.0,0.0002,2]
[368092708,1751022643103,-460.0,0.0002,2]
[368092709,1751022643112,-258.82356254,0.0002,2]
[368092710,1751022643121,-3724.58,0.0002,2]
[368092711,1751022643131,-2481.82,0.0002,2]
[368092712,1751022643140,-460.0,0.0002,2]
[368092713,1751022643150,-460.0,0.0002,2]
[368092714,1751022643159,-460.0,0.0002,2]
[368092715,1751022643169,-1680.38,0.0002,2]
[368092716,1751022643178,-2154.79,0.0002,2]
[368092717,1751022643188,-1185.4,0.0002,2]
[368092718,1751022643199,-460.0,0.0002,2]
[368092719,1751022643209,-1237.52,0.0002,2]
[368092720,1751022643218,-460.0,0.0002,2]
[368092721,1751022643228,-651.83,0.0002,2]
[368092722,1751022643238,-460.0,0.0002,2]
[368092723,1751022643247,-521.6,0.0002,2]
[368092724,1751022643258,-1035.1,0.0002,2]
[368092725,1751022643268,-460.0,0.0002,2]
[368092728,1751022643277,-460.0,0.0002,2]
[368092729,1751022643286,-460.0,0.0002,2]
[368092730,1751022643296,-460.0,0.0002,2]
[368092731,1751022643305,-786.33,0.0002,2]
[368092734,1751022643316,-2300.32,0.0002,2]
[368092735,1751022643326,-726.19,0.0002,2]
[368092736,1751022643335,-609.19,0.0002,2]
[368092737,1751022643345,-5506.58,0.0002,2]
[368092738,1751022643354,-1858.38,0.0002,2]
[368092739,1751022643364,-460.0,0.0002,2]
[368092740,1751022643374,-460.0,0.0002,2]
[368092741,1751022643383,-4272.26,0.0002,2]
[368092743,1751022643392,-460.0,0.0002,2]
[368092744,1751022643402,-460.0,0.0002,2]
[368092746,1751022643411,-1506.98,0.0002,2]
[368092748,1751022643421,-978.95,0.0002,2]
[368092750,1751022643431,-460.0,0.0002,2]
[368092751,1751022643559,-753.3,0.0002,2]
[368092752,1751022643570,-3243.13,0.0002,2]
[368092753,1751022643579,-616.05,0.0002,2]
[368092754,1751022643589,-3045.23,0.0002,2]
[368092755,1751022643602,-3763.12,0.0002,2]
[368092756,1751022643611,-460.0,0.0002,2]
[368092757,1751022643621,-466.25,0.0002,2]
[368092758,1751022643630,-691.92,0.0002,2]
[368092759,1751022643640,-578.65068982,0.0002,2]
[368092760,1751022643649,-472.04,0.0002,2]
[368092761,1751022643659,-460.0,0.0002,2]
[368092762,1751022643669,-460.0,0.0002,2]
[368092763,1751022643678,-460.0,0.0002,2]
[368092764,1751022643688,-460.0,0.0002,2]
[368092765,1751022643697,-668.29,0.0002,2]
[368092766,1751022643708,-460.0,0.0002,2]
[368092767,1751022643717,-651.62,0.0002,2]
[368092769,1751022643727,-460.0,0.0002,2]
[368092771,1751022643736,-956.72,0.0002,2]
[368092773,1751022643745,-460.0,0.0002,2]
[368092775,1751022643754,-1474.65,0.0002,2]
[368092777,1751022643764,-300.56217115,0.00020081,2]
[368092779,1751022643773,-151.0,0.00020088,2]
[368092781,1751022643782,-207.4,0.00020088,2]
[368092783,1751022643791,-5000.0,0.00020088,2]
[368092785,1751022643801,-500.0,0.00020088,2]
[368092788,1751022643811,-500.0,0.00020088,2]
[368092789,1751022643820,-500.0,0.00020088,2]
[368092790,1751022643829,-666.0,0.00020088,2]
[368092791,1751022643838,-500.0,0.00020088,2]
[368092792,1751022643848,-500.0,0.00020088,2]
[368092793,1751022643857,-500.0,0.00020088,2]
[368092794,1751022643866,-500.0,0.00020088,2]
[368092795,1751022643875,-500.0,0.00020088,2]
[368092796,1751022643885,-151.0,0.00020088,2]
[368092797,1751022643894,-500.0,0.00020088,2]
[368092798,1751022643904,-500.0,0.00020088,2]
[368092799,1751022643913,-151.0,0.00020088,2]
[368092800,1751022643922,-500.0,0.00020088,2]
[368092801,1751022643931,-151.0,0.00020088,2]
[368092802,1751022643940,-500.0,0.00020088,2]
[368092803,1751022643949,-500.0,0.00020088,2]
[368092804,1751022643959,-151.0,0.00020088,2]
[368092805,1751022643968,-500.0,0.00020088,2]
[368092806,1751022643977,-500.0,0.00020088,2]
[368092808,1751022643987,-4290.37088558,0.00020088,2]
[368092810,1751022643996,-151.0,0.00020088,2]
[368092812,1751022644005,-500.0,0.00020088,2]
[368092813,1751022644014,-500.0,0.00020088,2]
[368092815,1751022644024,-151.0,0.00020088,2]
[368092817,1751022644033,-500.0,0.00020088,2]
[368092819,1751022644043,-200.0,0.00020088,2]
[368092821,1751022644052,-500.0,0.00020088,2]
[368092823,1751022644061,-151.0,0.00020088,2]
[368092825,1751022644070,-500.0,0.00020088,2]
[368092827,1751022644079,-300.0,0.00020088,2]
[368092829,1751022644088,-500.0,0.00020088,2]
[368092831,1751022644097,-151.0,0.00020088,2]
[368092833,1751022644106,-500.0,0.00020088,2]
[368092835,1751022644115,-151.0,0.00020088,2]
[368092837,1751022644124,-500.0,0.00020088,2]
[368092839,1751022644133,-500.0,0.00020088,2]
[368092840,1751022644142,-151.0,0.00020088,2]
[368092841,1751022644151,-500.0,0.00020088,2]
[368092842,1751022644161,-500.0,0.00020088,2]
[368092843,1751022644170,-151.0,0.00020088,2]
[368092844,1751022644180,-500.0,0.00020088,2]
[368092845,1751022644190,-500.0,0.00020088,2]
[368092846,1751022644199,-500.0,0.00020088,2]
[368092847,1751022644208,-500.0,0.00020088,2]
[368092848,1751022644218,-151.0,0.00020088,2]
[368092849,1751022644228,-500.0,0.00020088,2]
[368092850,1751022644238,-151.0,0.00020088,2]
[368092851,1751022644247,-500.0,0.00020088,2]
[368092852,1751022644256,-500.0,0.00020088,2]
[368092853,1751022644266,-246.62150823,0.00020088,2]
[368092854,1751022644275,-500.0,0.00020088,2]
[368092855,1751022644284,-500.0,0.00020088,2]
[368092856,1751022644293,-500.0,0.00020088,2]
[368092857,1751022644303,-151.0,0.00020088,2]
[368092858,1751022644312,-25000.0,0.00020088,2]
[368092859,1751022644322,-151.0,0.00020088,2]
[368092860,1751022644331,-151.0,0.00020088,2]
[368092861,1751022644340,-4404.99936432,0.00020088,2]
[368092862,1751022644350,-151.0,0.00020088,2]
[368092863,1751022644359,-288.89272804,0.00020088,2]
[368092864,1751022644368,-151.0,0.00020088,2]
[368092865,1751022644376,-151.0,0.00020088,2]
[368092866,1751022644386,-227.54651037,0.00020088,2]
[368092867,1751022644396,-690.642,0.00020143,2]
[368092868,1751022644405,-716.195754,0.00020198,2]
[368092869,1751022644415,-410.98039248,0.00020212,2]
[368092870,1751022644425,-742.6949969,0.00020253,2]
[368092871,1751022644434,-310258.44884,0.00020272,2]
[368092872,1751022644444,-500.0,0.00020273,2]
[368092873,1751022644452,-500.0,0.00020273,2]
[368092874,1751022644462,-500.0,0.00020273,2]
[368092875,1751022644471,-500.0,0.00020273,2]
[368092876,1751022644480,-477.72,0.00020273,2]
[368092877,1751022644489,-460.0,0.00020273,2]
[368092878,1751022644499,-460.0,0.00020273,2]
[368092879,1751022644508,-791.95,0.00020273,2]
[368092880,1751022644518,-460.0,0.00020273,2]
[368092881,1751022644528,-460.0,0.00020273,2]
[368092882,1751022644537,-460.0,0.00020273,2]
[368092883,1751022644547,-460.0,0.00020273,2]
[368092884,1751022644556,-528.92,0.00020273,2]
[368092885,1751022644565,-713.1,0.00020273,2]
[368092886,1751022644575,-460.0,0.00020273,2]
[368092887,1751022644584,-460.0,0.00020273,2]
[368092888,1751022644596,-5760.83,0.00020273,2]
[368092889,1751022644605,-460.0,0.00020273,2]
[368092890,1751022644615,-460.0,0.00020273,2]
[368092891,1751022644624,-460.0,0.00020273,2]
[368092892,1751022644633,-3724.58,0.00020273,2]
[368092893,1751022644643,-2481.82,0.00020273,2]
[368092894,1751022644652,-460.0,0.00020273,2]
[368092895,1751022644661,-460.0,0.00020273,2]
[368092896,1751022644671,-1680.38,0.00020273,2]
[368092897,1751022644680,-2154.79,0.00020273,2]
[368092898,1751022644689,-1185.4,0.00020273,2]
[368092899,1751022644699,-460.0,0.00020273,2]
[368092900,1751022644708,-1237.52,0.00020273,2]
[368092901,1751022644718,-460.0,0.00020273,2]
[368092902,1751022644727,-651.83,0.00020273,2]
[368092903,1751022644736,-460.0,0.00020273,2]
[368092904,1751022644746,-521.6,0.00020273,2]
[368092905,1751022644755,-1035.1,0.00020273,2]
[368092906,1751022644764,-460.0,0.00020273,2]
[368092907,1751022644773,-460.0,0.00020273,2]
[368092908,1751022644784,-460.0,0.00020273,2]
[368092909,1751022644793,-786.33,0.00020273,2]
[368092910,1751022644804,-2300.32,0.00020273,2]
[368092911,1751022644813,-726.19,0.00020273,2]
[368092912,1751022644823,-609.19,0.00020273,2]
[368092913,1751022644832,-5506.58,0.00020273,2]
[368092914,1751022644841,-1858.38,0.00020273,2]
[368092915,1751022644850,-460.0,0.00020273,2]
[368092916,1751022644860,-460.0,0.00020273,2]
[368092917,1751022644869,-4272.26,0.00020273,2]
[368092918,1751022644878,-460.0,0.00020273,2]
[368092919,1751022644887,-460.0,0.00020273,2]
[368092920,1751022644896,-1506.98,0.00020273,2]
[368092921,1751022644905,-978.95,0.00020273,2]
[368092922,1751022644915,-460.0,0.00020273,2]
[368092923,1751022644924,-753.3,0.00020273,2]
[368092924,1751022644933,-3243.13,0.00020273,2]
[368092925,1751022644943,-616.05,0.00020273,2]
[368092926,1751022644952,-3045.23,0.00020273,2]
[368092927,1751022644961,-3763.12,0.00020273,2]
[368092928,1751022644971,-348.70614134,0.00020273,2]
[368092929,1751022644980,-466.25,0.00020273,2]
[368092930,1751022644989,-691.92,0.00020273,2]
[368092931,1751022644998,-472.04,0.00020273,2]
[368092932,1751022645008,-460.0,0.00020273,2]
[368092933,1751022645018,-460.0,0.00020273,2]
[368092934,1751022645028,-460.0,0.00020273,2]
[368092935,1751022645037,-460.0,0.00020273,2]
[368092936,1751022645046,-668.29,0.00020273,2]
[368092937,1751022645055,-460.0,0.00020273,2]
[368092938,1751022645066,-651.62,0.00020273,2]
[368092939,1751022645074,-460.0,0.00020273,2]
[368092940,1751022645084,-956.72,0.00020273,2]
[368092941,1751022645095,-1474.65,0.00020273,2]
[368092942,1751022645105,-501.09377109,0.00020295,2]
[368092943,1751022645114,-617.83311831,0.00020298,2]
[368092944,1751022645124,-1061.98398793,0.00020298,2]
[368092945,1751022645133,-770.17471178,0.00020308,2]
[368092946,1751022645142,-1000.0,0.00020328,2]
[368092947,1751022645152,-235.69525341,0.00020328,2]
[368092948,1751022645163,-1000.0,0.00020342,2]
[368092949,1751022645172,-500.0,0.00020342,2]
[368092950,1751022645182,-1000.0,0.00020343,2]
[368092951,1751022645192,-1000.0,0.00020343,2]
[368092952,1751022645201,-500.0,0.00020343,2]
[368092953,1751022645212,-500.0,0.00020343,2]
[368092954,1751022645221,-1000.0,0.00020343,2]
[368092955,1751022645231,-1000.0,0.00020361,2]
[368092956,1751022645240,-798.67117612,0.00020363,2]
[368092957,1751022645249,-2905.29662375,0.00020407,2]
[368092958,1751022645259,-153.0,0.00020411,2]
[368092959,1751022645269,-828.22200964,0.00020418,2]
[368092960,1751022645278,-858.86622399,0.00020473,2]
[368092961,1751022645288,-227.0,0.00020479,2]
[368092962,1751022645297,-151.0,0.000205,3]
[368092963,1751022645307,-151.0,0.000205,4]
[368092964,1751022645316,-890.64427428,0.00020528,2]
[368092965,1751022645325,-477.72,0.00020547,2]
[368092966,1751022645335,-460.0,0.00020547,2]
[368092967,1751022645344,-791.95,0.00020547,2]
[368092968,1751022645355,-460.0,0.00020547,2]
[368092969,1751022645365,-460.0,0.00020547,2]
[368092970,1751022645375,-460.0,0.00020547,2]
[368092971,1751022645384,-460.0,0.00020547,2]
[368092972,1751022645393,-528.92,0.00020547,2]
[368092973,1751022645403,-713.1,0.00020547,2]
[368092974,1751022645412,-460.0,0.00020547,2]
[368092975,1751022645421,-460.0,0.00020547,2]
[368092976,1751022645431,-5760.83,0.00020547,2]
[368092977,1751022645440,-460.0,0.00020547,2]
[368092978,1751022645449,-460.0,0.00020547,2]
[368092979,1751022645458,-460.0,0.00020547,2]
[368092980,1751022645467,-3724.58,0.00020547,2]
[368092981,1751022645475,-2481.82,0.00020547,2]
[368092982,1751022645484,-460.0,0.00020547,2]
[368092983,1751022645494,-460.0,0.00020547,2]
[368092984,1751022645503,-1680.38,0.00020547,2]
[368092985,1751022645511,-2154.79,0.00020547,2]
[368092986,1751022645521,-1185.4,0.00020547,2]
[368092987,1751022645531,-460.0,0.00020547,2]
[368092988,1751022645540,-1237.52,0.00020547,2]
[368092989,1751022645549,-460.0,0.00020547,2]
[368092990,1751022645557,-651.83,0.00020547,2]
[368092991,1751022645567,-460.0,0.00020547,2]
[368092992,1751022645576,-521.6,0.00020547,2]
[368092993,1751022645585,-1035.1,0.00020547,2]
[368092994,1751022645595,-413.07799668,0.00020547,2]
[368092995,1751022645605,-460.0,0.00020547,2]
[368092996,1751022645614,-460.0,0.00020547,2]
[368092997,1751022645624,-786.33,0.00020547,2]
[368092998,1751022645634,-2300.32,0.00020547,2]
[368092999,1751022645644,-726.19,0.00020547,2]
[368093000,1751022645653,-609.19,0.00020547,2]
[368093001,1751022645662,-5506.58,0.00020547,2]
[368093002,1751022645672,-1858.38,0.00020547,2]
[368093003,1751022645681,-460.0,0.00020547,2]
[368093004,1751022645690,-460.0,0.00020547,2]
[368093005,1751022645699,-4272.26,0.00020547,2]
[368093006,1751022645709,-460.0,0.00020547,2]
[368093007,1751022645718,-471.16412517,0.00020547,2]
[368093008,1751022645727,-1506.98,0.00020547,2]
[368093009,1751022645736,-978.95,0.00020547,2]
[368093010,1751022645746,-460.0,0.00020547,2]
[368093011,1751022645755,-753.3,0.00020547,2]
[368093012,1751022645764,-3243.13,0.00020547,2]
[368093013,1751022645774,-616.05,0.00020547,2]
[368093014,1751022645783,-3045.23,0.00020547,2]
[368093015,1751022645792,-3763.12,0.00020547,2]
[368093016,1751022645803,-466.25,0.00020547,2]
[368093017,1751022645813,-691.92,0.00020547,2]
[368093018,1751022645823,-472.04,0.00020547,2]
[368093019,1751022645833,-460.0,0.00020547,2]
[368093020,1751022645842,-460.0,0.00020547,2]
[368093021,1751022645851,-460.0,0.00020547,2]
[368093022,1751022645861,-668.29,0.00020547,2]
[368093023,1751022645870,-413.49062139,0.00020547,2]
[368093024,1751022645879,-651.62,0.00020547,2]
[368093025,1751022645889,-460.0,0.00020547,2]
[368093026,1751022645898,-956.72,0.00020547,2]
[368093027,1751022645908,-1474.65,0.00020547,2]
[368093028,1751022645918,-467.85241322,0.00020565,2]
[368093029,1751022645928,-923.59811243,0.00020583,2]
[368093030,1751022645937,-213.75309343,0.0002059,3]
[368093031,1751022645946,-847.04181546,0.0002059,3]
[368093032,1751022645955,-12562.41216491,0.0002059,3]
[368093033,1751022645965,-160.0,0.0002059,3]
[368093034,1751022645974,-4196.1,0.000206,2]
[368093035,1751022645983,-5000.0,0.00020636,2]
[368093036,1751022645992,-25000.0,0.00020636,2]
[368093037,1751022646001,-957.77124259,0.00020638,2]
[368093038,1751022646011,-151.706756,0.00020672,2]
[368093039,1751022646020,-993.20877856,0.00020693,2]
[368093040,1751022646029,-151.0,0.000207,4]
[368093041,1751022646038,-177.859,0.00020728,2]
[368093042,1751022646048,-989.999,0.00020728,2]
[368093043,1751022646058,-1029.95750337,0.00020748,2]
[368093044,1751022646069,-1068.065931,0.00020803,2]
[368093045,1751022646078,-1000.0,0.00020821,2]
[368093046,1751022646087,-1006.63485112,0.00020821,2]
[368093047,1751022646095,-1000.0,0.00020821,2]
[368093048,1751022646105,-1000.0,0.00020821,2]
[368093049,1751022646115,-151.0,0.00020821,2]
[368093050,1751022646124,-151.0,0.00020821,2]
[368093051,1751022646133,-151.0,0.00020821,2]
[368093052,1751022646143,-477.72,0.00020821,2]
[368093053,1751022646152,-460.0,0.00020821,2]
[368093054,1751022646162,-791.95,0.00020821,2]
[368093055,1751022646172,-460.0,0.00020821,2]
[368093056,1751022646182,-460.0,0.00020821,2]
[368093057,1751022646191,-460.0,0.00020821,2]
[368093058,1751022646201,-460.0,0.00020821,2]
[368093059,1751022646210,-528.92,0.00020821,2]
[368093060,1751022646219,-713.1,0.00020821,2]
[368093061,1751022646229,-460.0,0.00020821,2]
[368093062,1751022646238,-460.0,0.00020821,2]
[368093063,1751022646248,-5760.83,0.00020821,2]
[368093064,1751022646257,-460.0,0.00020821,2]
[368093065,1751022646266,-460.0,0.00020821,2]
[368093066,1751022646275,-460.0,0.00020821,2]
[368093067,1751022646285,-3724.58,0.00020821,2]
[368093068,1751022646294,-2481.82,0.00020821,2]
[368093069,1751022646304,-460.0,0.00020821,2]
[368093070,1751022646313,-1680.38,0.00020821,2]
[368093071,1751022646322,-2154.79,0.00020821,2]
[368093072,1751022646332,-1185.4,0.00020821,2]
[368093073,1751022646341,-460.0,0.00020821,2]
[368093074,1751022646351,-1237.52,0.00020821,2]
[368093075,1751022646360,-651.83,0.00020821,2]
[368093076,1751022646370,-460.0,0.00020821,2]
[368093082,1751022646379,-521.6,0.00020821,2]
[368093084,1751022646502,-1035.1,0.00020821,2]
[368093086,1751022646511,-460.0,0.00020821,2]
[368093088,1751022646521,-460.0,0.00020821,2]
[368093090,1751022646530,-786.33,0.00020821,2]
[368093092,1751022646539,-2300.32,0.00020821,2]
[368093094,1751022646549,-726.19,0.00020821,2]
[368093096,1751022646558,-609.19,0.00020821,2]
[368093098,1751022646568,-5506.58,0.00020821,2]
[368093100,1751022646577,-1858.38,0.00020821,2]
[368093102,1751022646587,-460.0,0.00020821,2]
[368093104,1751022646600,-4272.26,0.00020821,2]
[368093106,1751022646610,-460.0,0.00020821,2]
[368093108,1751022646620,-1506.98,0.00020821,2]
[368093110,1751022646630,-978.95,0.00020821,2]
[368093112,1751022646639,-460.0,0.00020821,2]
[368093114,1751022646648,-753.3,0.00020821,2]
[368093116,1751022646658,-3243.13,0.00020821,2]
[368093118,1751022646667,-616.05,0.00020821,2]
[368093120,1751022646676,-3045.23,0.00020821,2]
[368093122,1751022646686,-3763.12,0.00020821,2]
[368093124,1751022646695,-466.25,0.00020821,2]
[368093126,1751022646704,-691.92,0.00020821,2]
[368093128,1751022646714,-472.04,0.00020821,2]
[368093130,1751022646723,-460.0,0.00020821,2]
[368093132,1751022646732,-460.0,0.00020821,2]
[368093133,1751022646741,-668.29,0.00020821,2]
[368093134,1751022646750,-651.62,0.00020821,2]
[368093136,1751022646760,-460.0,0.00020821,2]
[368093138,1751022646770,-956.72,0.00020821,2]
[368093140,1751022646779,-1474.65,0.00020821,2]
[368093142,1751022646788,-227.0,0.00020832,2]
[368093144,1751022646799,-2905.29662375,0.00020838,2]
[368093146,1751022646809,-307.4082959,0.00020849,2]
[368093148,1751022646818,-1107.58437044,0.00020858,2]
[368093150,1751022646827,-1280.16948974,0.00020876,2]
[368093153,1751022646837,-356.8872515,0.00020877,2]
[368093155,1751022646847,-1011.55355153,0.0002089,2]
[368093157,1751022646857,-500.0,0.00020891,2]
[368093159,1751022646866,-395.67986745,0.00020891,2]
[368093161,1751022646875,-420.0,0.00020899,2]
[368093163,1751022646884,-8060.60026186,0.000209,4]
[368093164,1751022646893,-929.3994959,0.00020909,2]
[368093166,1751022646903,-1148.56499215,0.00020913,2]
[368093168,1751022646911,-151.0,0.00020941,2]
[368093170,1751022646920,-500.0,0.00020986,2]
[368093172,1751022646929,-151.0,0.00021,4]
[368093174,1751022646939,-971.428763,0.00021069,4]
[368093176,1751022646948,-8060.60026161,0.00021072,4]
[368093178,1751022646957,-477.72,0.00021095,2]
[368093180,1751022646966,-460.0,0.00021095,2]
[368093182,1751022646975,-791.95,0.00021095,2]
[368093184,1751022646985,-460.0,0.00021095,2]
[368093186,1751022646994,-460.0,0.00021095,2]
[368093189,1751022647004,-326.64766857,0.00021095,2]
[368093191,1751022647013,-460.0,0.00021095,2]
[368093192,1751022647022,-528.92,0.00021095,2]
[368093195,1751022647032,-713.1,0.00021095,2]
[368093196,1751022647043,-460.0,0.00021095,2]
[368093198,1751022647052,-460.0,0.00021095,2]
[368093200,1751022647062,-5760.83,0.00021095,2]
[368093202,1751022647071,-460.0,0.00021095,2]
[368093205,1751022647081,-460.0,0.00021095,2]
[368093207,1751022647090,-460.0,0.00021095,2]
[368093208,1751022647099,-3724.58,0.00021095,2]
[368093210,1751022647108,-2481.82,0.00021095,2]
[368093212,1751022647118,-460.0,0.00021095,2]
[368093214,1751022647127,-1680.38,0.00021095,2]
[368093216,1751022647136,-2154.79,0.00021095,2]
[368093218,1751022647145,-1185.4,0.00021095,2]
[368093220,1751022647155,-460.0,0.00021095,2]
[368093222,1751022647164,-1237.52,0.00021095,2]
[368093224,1751022647173,-651.83,0.00021095,2]
[368093227,1751022647183,-460.0,0.00021095,2]
[368093228,1751022647192,-521.6,0.00021095,2]
[368093230,1751022647201,-1035.1,0.00021095,2]
[368093233,1751022647210,-528.44,0.00021095,2]
[368093234,1751022647220,-460.0,0.00021095,2]
[368093236,1751022647229,-786.33,0.00021095,2]
[368093238,1751022647238,-2300.32,0.00021095,2]
[368093240,1751022647248,-726.19,0.00021095,2]
[368093242,1751022647257,-609.19,0.00021095,2]
[368093244,1751022647266,-5506.58,0.00021095,2]
[368093247,1751022647279,-1858.38,0.00021095,2]
[368093249,1751022647288,-460.0,0.00021095,2]
[368093250,1751022647297,-4272.26,0.00021095,2]
[368093253,1751022647307,-460.0,0.00021095,2]
[368093255,1751022647316,-1506.98,0.00021095,2]
[368093257,1751022647325,-978.95,0.00021095,2]
[368093259,1751022647334,-460.0,0.00021095,2]
[368093261,1751022647344,-753.3,0.00021095,2]
[368093262,1751022647353,-3243.13,0.00021095,2]
[368093264,1751022647362,-616.05,0.00021095,2]
[368093266,1751022647372,-3045.23,0.00021095,2]
[368093269,1751022647381,-3763.12,0.00021095,2]
[368093271,1751022647392,-466.25,0.00021095,2]
[368093273,1751022647401,-691.92,0.00021095,2]
[368093275,1751022647411,-472.04,0.00021095,2]
[368093277,1751022647420,-460.0,0.00021095,2]
[368093279,1751022647429,-460.0,0.00021095,2]
[368093280,1751022647438,-668.29,0.00021095,2]
[368093282,1751022647447,-651.62,0.00021095,2]
[368093284,1751022647456,-460.0,0.00021095,2]
[368093286,1751022647465,-956.72,0.00021095,2]
[368093288,1751022647475,-966.0,0.00021105,2]
[368093291,1751022647485,-2161.0,0.00021105,2]
[368093293,1751022647494,-654.0,0.00021105,2]
[368093295,1751022647503,-406.0,0.00021105,2]
[368093297,1751022647512,-5000.0,0.00021184,2]
[368093299,1751022647521,-6225.46551977,0.00021184,2]
[368093320,1751022647719,-18774.53448023,0.00021184,2]
[368093322,1751022647729,-200.0,0.000212,2]
[368093324,1751022647738,-2921.74352397,0.00021245,4]
[368093356,1751022648028,-460.0,0.00019178,2]
[368093358,1751022648038,-500.0,0.0001937,2]
[368093360,1751022648047,-500.0,0.0001937,2]
[368093362,1751022648056,-500.0,0.00019397,2]
[368093364,1751022648065,-500.0,0.00019397,2]
[368093366,1751022648074,-53.15306016,0.00019425,2]
[368093368,1751022648085,-446.84693984,0.00019425,2]
[368093370,1751022648094,-500.0,0.00019425,2]
[368093372,1751022648105,-460.0,0.00019452,2]
[368093374,1751022648114,-299.00795749,0.00019452,2]
[368093376,1751022648126,-86.65960261,0.00019452,2]
[368093378,1751022648136,-1474.65,0.00021095,2]
[368093380,1751022648146,-5138.85673764,0.00021245,4]
[368093382,1751022648155,-918.82303796,0.00021269,2]
[368093400,1751022648324,-460.0,0.00019178,2]
[368093402,1751022648334,-460.0,0.00019178,2]
[368093404,1751022648343,-137.00930839,0.0001937,2]
[368093406,1751022648355,-13.99069161,0.0001937,2]
[368093408,1751022648364,-151.0,0.00019397,2]
[368093410,1751022648374,-151.0,0.00019425,2]
[368093412,1751022648383,-402.90321401,0.00019452,2]
[368093414,1751022648394,-57.09678599,0.00019452,2]
[368093416,1751022648403,-460.0,0.00019452,2]
[368093418,1751022648413,-151.0,0.00019452,2]
[368093420,1751022648422,-151.0,0.0001948,2]
[368093422,1751022648432,-245.0,0.00019507,2]
[368093424,1751022648441,-460.0,0.00019726,2]
[368093426,1751022648451,-460.0,0.00019726,2]
[368093428,1751022648461,-460.0,0.0002,2]
[368093431,1751022648471,-421.55,0.0002,2]
[368093433,1751022648480,-1986.47358579,0.00021269,2]
[368093435,1751022648490,-151.0,0.000213,4]